Workbook

Sheet Sheet1
A1: Gradation Optimization for Granular Surface Materials Developed in Iowa Highway Research Board Project TR-685 Purpose: This program was developed based on a performance-based free-design approach used to recycle existing degraded surface materials of granular-surfaced roads by mixing in fresh quarry materials with or without subgrade to achieve an optimized target gradation. This program was developed in the IHRB Project TR-685 sponsored by the Iowa DOT. Theory: This program calculates the target optimal gradation based on the maximum aggregate size (Dmax) and particle size distribution shape factor (n) of Fuller’s model. The optimal range of the n value is recommended based on experimental and field test results obtained in Project TR-685. The gradation of representative existing surface and/or subgrade materials need to be accurately determined by users. If the subgrade will be incorporated to improve the plasticity of the surface material, the gradation of the existing surface plus subgrade mixture will be calculated in the program and compared to the theoretical optimal gradation, and then the missing size ranges will be identified. Since the resulting target virgin material gradation may not be locally available, the program can also optimize the proportion of two or three locally available materials to provide the closest gradation to the target virgin material gradation. Inputs: The green color cells are the inputs that need to be provided by users. The dry unit weights of the surface and subgrade materials can be adjusted based on users' experience. The average thicknesses and representative gradations of the existing surface aggregate and/or subgrade need to be measured. If the subgrade will not be incorporated, enter 0 for the thickness and gradation of the subgrade. The target final thickness of the surface aggregate layer must be more than four times the top size of the virgin material. Instructions: 1. Click "Enable Editing" and then "Enable Contents" in the yellow security warning ribbon above. 2. Fill in the green cells. 3. Enter the gradations of the available virgin materials. 4. If using only two materials, enter zeros in the Quarry Material C column. 5. Click the "INSTALL SOLVER" button to activate the Excel Solver Add-in. 6. Click the "RUN" button. 7. The optimized proportions and quantities of the virgin materials are shown in the blue cells. | Q1: Sieve Sizes | R1: % Passing
Q2: 50.8 | R2: 100
Q3: 50.8 | R3: 0
Q5: 37.5 | R5: 100
Q6: 37.5 | R6: 0
Q8: 25.4 | R8: 100
Q9: 25.4 | R9: 0
Q11: 19.05 | R11: 100
Q12: 19.05 | R12: 0
Q14: 12.7 | R14: 100
Q15: 12.7 | R15: 0
Q17: 9.51 | R17: 100
Q20: 4.75 | R20: 100
Q21: 4.75 | R21: 0
Q23: 2.38 | R23: 100
A24: District | B24: 1 | D24: Project | E24: Granular Surfaced Road | J24: Date | K24: 2017-09-03 | Q24: 2.38 | R24: 0
A25: County | B25: YOURS | D25: Note | E25: This is a trial version of the program | J25: Designer | K25: Cheng Li
A27: Road Geometry | F27: Properties of Existing Materials
A28: Road Length | D28: 5280 | E28: ft | F28: Thickness of Existing Suface Material | J28: 1.5 | K28: in. | Q28: 1.19 | R28: 100
A29: Average Road Width | D29: 26 | E29: ft | F29: Dry Unit Weight of the Virgin Material | J29: 125 | K29: pcf | Q29: 1.19 | R29: 0
F30: Thickness of Subgrade to be Incorporated into the Surface | J30: 1 | K30: in.
A31: Final Design Parameter | F31: Dry Unit Weight of the Subgrade | J31: 90 | K31: pcf | Q31: 0.595 | R31: 100
A32: Target Final Thickness | D32: 5 | E32: in. | F32: Total Thickness of the Existing Surface and Subgrade | J32: =J28+J30 -> 2.5 | K32: in. | Q32: 0.595 | R32: 0
A33: Target Maximum Aggregate Size (Dmax) | D33: 1 | E33: in.
A34: Target Gradation Shape Factor (n) | D34: 0.35 | E34: 0.35 to 0.40 is recommeded. The coarseness increases as the n value increases. | Q34: 9.51 | R34: 100
Q35: 9.51 | R35: 0
A37: Sieve No. | B37: Sieve size (mm) | C37: Optimal Gradation (%) | D37: Existing Surface Material Gradation (%) | E37: Subgrade Gradation (%) | F37: Calculated Gradation of the Existing Surface and Subgrade Mixture (%) | G37: Quarry Material A (%) | H37: Quarry Material B (%) | I37: Quarry Material C (%) | J37: Optimized Quarry Virgin Gradation (%) | K37: Target Virgin Material Gradation (%) | L37: Final Gradation with Target Virgin Material (%) | M37: Final Gradation with Optimized Virgin Material (%) | N37: Sq. Error | O37: Sq. Error | Q37: 0.297 | R37: 100
A38: 2 | B38: 50.8 | C38: =IF(B38>$D$33*25.4,100,(B38/($D$33*25.4))^$D$34*100) -> 100 | D38: 100 | E38: 100 | F38: =(D38*$J$28*$J$29+E38*$J$30*$J$31)/($J$28*$J$29+$J$30*$J$31) -> 100 | G38: 100 | H38: 100 | I38: 0 | J38: =G38*($G$51/100)+H38*($H$51/100)+I38*($I$51/100) -> 100.0000006 | K38: 100 | L38: =F38*($J$32/$D$32)+K38*(($D$32-$J$32)/$D$32) -> 100 | M38: =F38*($J$32/$D$32)+J38*(($D$32-$J$32)/$D$32) -> 100.0000003 | N38: =(L38-C38)^2 -> 0 | O38: =(J38-K38)^2 -> 3.146419759e-13 | Q38: 0.297 | R38: 0
A39: 1.5 | B39: 38.1 | C39: 100 | D39: 100 | E39: 100 | F39: =(D39*$J$28*$J$29+E39*$J$30*$J$31)/($J$28*$J$29+$J$30*$J$31) -> 100 | G39: 100 | H39: 100 | I39: 0 | J39: =G39*($G$51/100)+H39*($H$51/100)+I39*($I$51/100) -> 100.0000006 | K39: 100 | L39: =F39*($J$32/$D$32)+K39*(($D$32-$J$32)/$D$32) -> 100 | M39: =F39*($J$32/$D$32)+J39*(($D$32-$J$32)/$D$32) -> 100.0000003 | N39: 0 | O39: 3.146419759e-13
A40: 1 | B40: 25.4 | C40: 100 | D40: 100 | E40: 100 | F40: 100 | G40: 99 | H40: 93 | I40: 0 | J40: 94.2619289 | K40: 100 | L40: 100 | M40: 97.13096445 | N40: 0 | O40: 32.92546 | Q40: 0.149 | R40: 100
A41: 3/4 | B41: 19 | C41: 90.33830953 | D41: 93 | E41: 100 | F41: 95.27027027 | G41: 77 | H41: 78 | I41: 0 | J41: 77.78967904 | K41: 85.40617626 | L41: 90.33822327 | M41: 86.52997466 | N41: 7.442279258e-09 | O41: 58.01102988 | Q41: 0.149 | R41: 0
A42: 1/2 | B42: 12.7 | C42: 78.45840979 | D42: 88.9 | E42: 98.8 | F42: 92.11081081 | G42: 36 | H42: 60 | I42: 0 | J42: 54.95228684 | K42: 64.80594511 | L42: 78.45837796 | M42: 73.53154883 | N42: 1.013243143e-09 | O42: 97.09458121
A43: 3/8 | B43: 9.51 | C43: 70.90410511 | D43: 84.8 | E43: 97.1 | F43: 88.78918919 | G43: 18 | H43: 51 | I43: 0 | J43: 44.05939423 | K43: 53.01906718 | L43: 70.90412819 | M43: 66.42429171 | N43: 5.325005681e-10 | O43: 80.27573948 | Q43: 0.075 | R43: 100
A44: #4 | B44: 4.76 | C44: 55.65070015 | D44: 70.8 | E44: 95.4 | F44: 78.77837838 | G44: 16 | H44: 36 | I44: 0 | J44: 31.79357229 | K44: 32.52319577 | L44: 55.65078708 | M44: 55.28597533 | N44: 7.555996853e-09 | O44: 0.5323504297 | Q44: 0.075 | R44: 0
A45: #8 | B45: 2.38 | C45: 43.66265437 | D45: 56.3 | E45: 93.8 | F45: 68.46216216 | G45: 13 | H45: 28 | I45: 0 | J45: 24.84517922 | K45: 18.86315759 | L45: 43.66265987 | M45: 46.65367069 | N45: 3.024371105e-11 | O45: 35.78458284
A46: #16 | B46: 1.19 | C46: 34.25702429 | D46: 44.7 | E46: 92.3 | F46: 60.13783784 | G46: 11 | H46: 21 | I46: 0 | J46: 18.89678616 | K46: 8.376185281 | L46: 34.25701156 | M46: 39.517312 | N46: 1.621856034e-10 | O46: 110.6830429
A47: #30 | B47: 0.595 | C47: 26.8775165 | D47: 35.5 | E47: 91.2 | F47: 53.56486486 | G47: 9.6 | H47: 16 | I47: 0 | J47: 14.65394316 | K47: 0.1900993421 | L47: 26.8774821 | M47: 34.10940401 | N47: 1.183310298e-09 | O47: 209.2027779
A48: #50 | B48: 0.297 | C48: 21.07526074 | D48: 27 | E48: 90.3 | F48: 47.52972973 | G48: 5.4 | H48: 13 | I48: 0 | J48: 11.40155747 | K48: 0 | L48: 23.76486486 | M48: 29.4656436 | N48: 7.233970326 | O48: 129.9955126
A49: #100 | B49: 0.149 | C49: 16.55477922 | D49: 20.4 | E49: 88 | F49: 42.32432432 | G49: 3.2 | H49: 11 | I49: 0 | J49: 9.359493175 | K49: 0 | L49: 21.16216216 | M49: 25.84190875 | N49: 21.22797761 | O49: 87.6001125
A50: #200 | B50: 0.075 | C50: 13.01906039 | D50: 16.6 | E50: 87.1 | F50: 39.46486486 | G50: 0 | H50: 9.6 | I50: 0 | J50: 7.580914655 | K50: 0 | L50: 19.73243243 | M50: 23.52288976 | N50: 45.06936424 | O50: 57.47026701
F51: Proportion (%) | G51: 21.03213957 | H51: 78.96786099 | I51: 0 | J51: =G51+H51+I51 -> 100.0000006 | K51: 100 | N51: =SUM(N38:N50) -> 73.5313122 | O51: =SUM(O38:O50) -> 899.5754568
F52: Quantity (tons) | G52: =$D$28*$D$29*($D$32-$J$32)/12*$J$29*$G$51/100/2000 -> 375.9494948 | H52: =$D$28*$D$29*($D$32-$J$32)/12*$J$29*$H$51/100/2000 -> 1411.550515 | I52: =$D$28*$D$29*($D$32-$J$32)/12*$J$29*$I$51/100/2000 -> 0 | J52: =$D$28*$D$29*($D$32-$J$32)/12*$J$29*$J$51/100/2000 -> 1787.50001 | K52: =$D$28*$D$29*($D$32-$J$32)/12*$J$29*$K$51/100/2000 -> 1787.5
